bitfinex/quotes_SOLUSD_20260113
["timestamp","ask_amount","ask_price","bid_price","bid_amount"]
[1768316964609,0.70224888,141.86,141.81,7.85886475]
[1768316964888,0.70224888,141.84,141.81,0.1]
[1768316965077,0.70224888,141.85,141.81,0.1]
[1768316965460,4.28195387,141.87,141.82,3.57970499]
[1768316965687,0.70224888,141.87,141.83,7.05064395]
[1768316965862,0.70224888,141.87,141.83,10.63034894]
[1768316966187,7.75103963,141.87,141.83,10.63034894]
[1768316966357,0.70224888,141.86,141.82,10.6308044]
[1768316966561,0.70224888,141.86,141.81,7.15136347]
[1768316966777,0.70224888,141.86,141.81,0.1]
[1768316966976,0.70224888,141.85,141.81,0.1]
[1768316967385,0.70224888,141.84,141.81,0.1]
[1768316967777,0.70224888,141.84,141.81,7.15139725]
[1768316968399,7.75257592,141.84,141.81,0.1]
[1768316968698,0.70224888,141.83,141.81,0.1]
[1768316970103,0.70224888,141.82,141.77,7.05359555]
[1768316970309,7.7541109,141.81,141.77,7.05348225]
[1768316970497,7.7541109,141.81,141.77,15.91810805]
[1768316970698,0.67224889,141.81,141.77,7.05348225]
[1768316970896,12.86,141.85,141.79,9.57203845]
[1768316971206,21.7246258,141.85,141.79,9.57203845]
[1768316971513,21.7246258,141.85,141.8,8.8646258]
[1768316971799,21.7246258,141.85,141.79,9.57203845]
[1768316972179,46.39857714,141.85,141.79,16.62438896]
[1768316972382,46.39857714,141.85,141.79,7.75976316]
[1768316972583,8.8646258,141.83,141.78,7.05309576]
[1768316972784,0.70224888,141.82,141.77,16.62536085]
[1768316973091,0.70224888,141.82,141.74,35.27575672]
[1768316973092,9.56687468,141.79,141.74,7.76241534]
[1768316973296,0.70224888,141.79,141.75,7.05466877]
[1768316973496,0.70224888,141.79,141.75,15.91929457]
[1768316974210,0.70224888,141.81,141.76,9.57203845]
[1768316974391,13.56224888,141.82,141.77,0.70741265]
[1768316974714,13.56224888,141.82,141.78,8.8646258]
[1768316974904,0.70224888,141.82,141.78,8.8646258]
[1768316975104,7.75356612,141.82,141.78,8.8646258]
[1768316975405,7.75356612,141.82,141.75,7.05466877]
[1768316975406,0.69609112,141.79,141.75,7.05466877]
[1768316975623,0.66609113,141.79,141.75,16.62914483]
[1768316975913,12.86,141.8,141.73,0.1]
[1768316976120,8.8646258,141.76,141.73,0.1]
[1768316976409,7.05467372,141.75,141.73,0.1]
[1768316976632,15.91929952,141.75,141.71,0.80985026]
[1768316976908,7.05467372,141.75,141.71,0.1]
[1768316977086,15.91929952,141.75,141.71,0.1]
[1768316977288,7.05467372,141.75,141.71,7.15653729]
[1768316977586,7.75076484,141.75,141.71,7.15653729]
[1768316977783,16.61539064,141.75,141.71,7.15653729]
[1768316978208,16.61539064,141.75,141.71,0.1]
[1768316978209,0.69609112,141.73,141.71,0.1]
[1768316978412,9.56071692,141.75,141.71,0.1]
[1768316978614,0.69609112,141.74,141.71,0.1]
[1768316979210,12.86,141.77,141.73,0.70985026]
[1768316979393,9.56071692,141.78,141.73,0.70985026]
[1768316979600,16.61444789,141.77,141.72,9.57447606]
[1768316980216,7.74982209,141.77,141.72,16.63030548]
[1768316981291,0.69609112,141.79,141.75,0.70985026]
[1768316981503,120.01296117,141.8,141.75,9.57447606]
[1768316981720,0.69609112,141.78,141.73,0.70985026]
[1768316982021,0.69609112,141.77,141.73,0.70985026]
[1768316982192,0.69609112,141.77,141.73,9.57447606]
[1768316982394,7.05350721,141.78,141.73,16.62985941]
[1768316982820,7.74959833,141.78,141.73,9.57447606]
[1768316983033,7.74959833,141.78,141.73,16.63013668]
[1768316983513,7.05273258,141.79,141.75,9.57447606]
[1768316983898,7.05273258,141.79,141.75,0.70985026]
[1768316984218,7.05273258,141.79,141.75,9.57447606]
[1768316984403,7.05273258,141.79,141.75,16.6290213]
[1768316984902,7.05273258,141.79,141.75,0.70985026]
[1768316985323,16.6134495,141.79,141.75,0.70985026]
[1768316985527,7.7488237,141.79,141.75,0.70985026]
[1768316987219,25.38053256,141.79,141.75,0.70985026]
[1768316987416,0.69609112,141.78,141.73,16.6300698]
[1768316987925,9.56071692,141.78,141.73,16.6300698]
[1768316988113,9.56071692,141.78,141.74,7.05506323]
[1768316988305,34.24515836,141.79,141.74,16.62953929]
[1768316988504,25.38053256,141.79,141.74,7.76491349]
[1768316988734,34.24515836,141.79,141.74,0.70985026]
[1768316989310,25.38053256,141.79,141.74,16.6296245]
[1768316989510,34.24515836,141.79,141.74,16.6296245]
[1768316989704,25.38053256,141.79,141.74,16.6296245]
[1768316989925,7.05273258,141.79,141.76,0.70985026]
[1768316990121,103.4,141.8,141.76,9.57447606]
[1768316990330,103.4,141.8,141.77,0.70985026]
[1768316990528,104.09609112,141.83,141.78,9.57447606]
[1768316990730,104.09609112,141.83,141.78,0.70985026]
[1768316990929,7.05124275,141.82,141.78,7.76302374]
[1768316991129,7.05124275,141.82,141.78,16.62764954]
[1768316991821,7.74733387,141.82,141.78,7.76302374]
[1768316992136,7.74733387,141.82,141.78,16.62764954]
[1768316992311,7.74733387,141.82,141.78,9.57447606]
[1768316993014,7.74733387,141.82,141.78,0.70985026]
[1768316993015,25.37531299,141.82,141.78,0.70985026]
[1768316993244,34.23993879,141.82,141.77,8.8646258]
[1768316993452,0.69609112,141.81,141.76,16.62843949]
[1768316993614,0.69609112,141.8,141.76,0.70985026]
[1768316993807,9.56071692,141.8,141.76,0.70985026]
[1768316994358,7.74875041,141.8,141.76,7.76398748]
[1768316994910,19.91175739,141.81,141.76,16.62861328]
[1768316995139,20.60784851,141.81,141.77,9.57447606]
[1768316995615,20.60784851,141.81,141.77,0.70985026]
[1768316996635,29.47247431,141.81,141.77,0.70985026]
[1768316996817,20.60784851,141.81,141.77,0.70985026]
[1768316997025,29.47247431,141.81,141.77,0.70985026]
[1768316997623,29.47247431,141.81,141.76,0.70985026]
[1768316998734,29.47247431,141.81,141.77,0.70985026]
[1768316998735,20.60784851,141.81,141.77,0.70985026]
[1768316999243,29.47247431,141.81,141.77,0.70985026]
[1768316999845,20.60784851,141.81,141.77,0.70985026]
[1768317000330,7.74784851,141.81,141.77,0.70985026]
[1768317000644,7.74784851,141.81,141.77,7.76347182]
[1768317000953,7.74784851,141.81,141.77,16.62809762]
[1768317001726,7.74784851,141.81,141.77,7.76347182]
[1768317002136,7.74784851,141.81,141.77,16.62809762]
[1768317002339,7.74745695,141.82,141.78,0.70985026]
[1768317002648,123.310909,141.83,141.79,0.70985026]
[1768317002848,103.4,141.83,141.79,0.70985026]
[1768317003046,104.09609112,141.83,141.79,0.70985026]
[1768317003343,104.09609112,141.83,141.79,6.1654969]
[1768317003637,111.14692524,141.83,141.79,6.1654969]
[1768317004157,6.15173776,141.82,141.76,19.0254969]
[1768317004324,0.69609112,141.8,141.74,0.70985026]
[1768317004663,0.69609112,141.8,141.76,13.21940794]
[1768317004829,0.69609112,141.8,141.76,7.7637613]
[1768317005030,0.69609112,141.8,141.76,13.21940794]
[1768317005344,0.69609112,141.8,141.76,0.70985026]
[1768317005559,0.70027739,141.78,141.72,18.33445494]
[1768317005745,0.70027739,141.76,141.72,7.75057307]
[1768317005949,0.70027739,141.76,141.71,0.79469166]
[1768317005950,0.70027739,141.75,141.71,0.79469166]
[1768317006131,6.15592403,141.77,141.72,0.69469166]
[1768317006331,0.70027739,141.76,141.72,6.1503383]
[1768317006633,6.15592403,141.76,141.72,0.69469166]
[1768317006835,0.70027739,141.76,141.72,0.69469166]
[1768317007035,0.70027739,141.76,141.72,6.1503383]
[1768317007548,5.45564664,141.77,141.73,7.75036089]
[1768317007856,0.70027739,141.78,141.74,6.1503383]
[1768317008160,0.70027739,141.78,141.74,0.69469166]
[1768317008375,0.70027739,141.78,141.74,6.1503383]
[1768317008552,0.70027739,141.78,141.74,5.45564664]
[1768317009192,0.70027739,141.78,141.74,6.1503383]
[1768317009759,7.75351782,141.78,141.74,7.74944764]
[1768317009963,13.20916446,141.78,141.74,7.05475598]
[1768317011353,0.70027739,141.78,141.74,7.05475598]
[1768317012157,7.75349873,141.78,141.74,7.05475598]
[1768317012341,10.04677635,141.78,141.74,7.05475598]
[1768317012660,0.70027739,141.76,141.72,7.05585521]
[1768317013034,2.99355501,141.76,141.72,7.05585521]
[1768317013235,0.70027739,141.75,141.72,7.05585521]
[1768317013662,0.70027739,141.75,141.72,6.99585521]
[1768317014765,0.70027739,141.75,141.72,9.28913283]
[1768317014946,0.70027739,141.75,141.72,6.99585521]
[1768317015146,7.75503719,141.75,141.71,10.14441772]
[1768317015354,0.70027739,141.75,141.71,10.14441772]
[1768317016053,0.70027739,141.75,141.71,7.8511401]
[1768317016254,0.70527979,141.73,141.71,0.1]
[1768317016457,0.70527979,141.74,141.71,7.09664491]
[1768317016660,124.0195072,141.76,141.72,2.29327762]
[1768317016865,0.70527979,141.75,141.72,2.29327762]
[1768317017162,0.70527979,141.75,141.71,10.0939766]
[1768317017745,2.99855741,141.79,141.74,2.99733169]
[1768317017952,5.90111331,141.78,141.75,7.05467372]
[1768317018183,7.75597428,141.83,141.78,0.70405407]
[1768317018468,7.75597428,141.83,141.79,2.29327762]
[1768317018979,0.70527979,141.83,141.8,2.29327762]
[1768317019342,0.70527979,141.83,141.8,5.45534173]
[1768317019542,0.70527979,141.83,141.79,0.70405407]
[1768317019766,0.70527979,141.83,141.79,6.1593958]
[1768317020559,7.75606691,141.83,141.79,13.21196479]
[1768317020766,7.75606691,141.83,141.79,13.15196479]
[1768317020969,5.19389467,141.82,141.78,7.0528645]
[1768317021143,0.70527979,141.79,141.75,12.50982502]
[1768317021349,13.56527979,141.81,141.76,7.0539694]
[1768317021549,13.56527979,141.81,141.77,5.45534173]
[1768317021760,5.89836134,141.8,141.76,12.50931113]
[1768317021976,0.70527979,141.8,141.76,12.50931113]
[1768317022357,0.70527979,141.8,141.76,5.45534173]
[1768317022673,7.75795131,141.8,141.76,5.45534173]
[1768317023471,7.75795131,141.8,141.76,12.50909787]
[1768317023765,7.75795131,141.8,141.77,5.45534173]
[1768317024774,7.75795131,141.8,141.76,12.50909787]
[1768317025069,7.75795131,141.8,141.76,5.45534173]
[1768317025272,5.18985402,141.79,141.75,13.2139024]
[1768317025466,13.21329304,141.8,141.75,13.2139024]
[1768317025786,5.19022166,141.79,141.76,5.45534173]
[1768317026073,7.75795131,141.8,141.76,5.45534173]
[1768317026273,12.24361858,141.79,141.76,5.45534173]
[1768317026471,0.70527979,141.78,141.74,5.45534173]
[1768317026766,5.89616213,141.78,141.74,5.45534173]
[1768317026969,0.70527979,141.78,141.73,0.70405407]
[1768317027354,0.70527979,141.78,141.74,5.45534173]
[1768317027555,0.70527979,141.78,141.74,12.51046191]
[1768317027764,7.75869853,141.78,141.74,12.51046191]
[1768317028069,7.75869853,141.78,141.75,5.45534173]
[1768317028274,7.75810226,141.79,141.75,5.45534173]
[1768317028454,5.89655333,141.78,141.75,5.45534173]
[1768317028653,0.70527979,141.78,141.74,13.21451598]
[1768317028856,0.70527979,141.78,141.75,5.45534173]
[1768317029476,7.75868004,141.78,141.74,13.21451598]
[1768317029676,7.75868004,141.78,141.75,7.05462517]
[1768317029980,0.70527979,141.78,141.75,6.99462517]
[1768317030272,0.70527979,141.78,141.75,12.4499669]
[1768317030453,7.75859366,141.78,141.74,0.70405407]
[1768317030653,7.75859366,141.78,141.75,5.45534173]
[1768317030876,0.70527979,141.78,141.75,12.50986132]
[1768317031069,0.70527979,141.78,141.75,7.05451959]
[1768317031265,7.75859589,141.78,141.74,6.1593958]
[1768317031570,7.75859589,141.78,141.75,5.45534173]
[1768317031773,0.70527979,141.77,141.72,0.70405407]
[1768317031960,0.70527979,141.77,141.72,6.1593958]
[1768317032164,0.70527979,141.77,141.73,5.45534173]
[1768317032861,0.70527979,141.77,141.72,6.1593958]
[1768317033063,0.70527979,141.76,141.72,6.1593958]
[1768317033467,0.70527979,141.76,141.72,13.21515473]
[1768317033854,0.70527979,141.76,141.72,7.759813]
[1768317034058,0.70527979,141.76,141.73,5.45534173]
[1768317034575,0.70527979,141.76,141.71,0.04]
[1768317034775,7.05408307,141.77,141.71,7.09634986]
[1768317034776,11.35302962,141.75,141.71,7.09634986]
[1768317034955,0.70527979,141.75,141.71,7.76566304]
[1768317035275,13.18329401,141.77,141.73,7.05562403]
[1768317035479,13.18329401,141.77,141.73,12.51096576]
[1768317035480,5.19150883,141.76,141.73,12.51096576]
[1768317035678,7.72795228,141.77,141.73,12.51096576]
[1768317035880,7.72714366,141.78,141.74,6.12465491]
[1768317036583,5.86670933,141.77,141.73,0.66931318]
[1768317036876,12.9209381,141.76,141.72,13.18062287]
[1768317037068,7.72804528,141.76,141.72,13.18062287]
[1768317037476,7.72804528,141.76,141.72,7.72528114]
[1768317037654,7.72804528,141.76,141.72,13.18062287]
[1768317040181,5.45534173,141.67,141.63,7.72988288]
[1768317040960,5.45534173,141.67,141.64,7.06014067]
[1768317041161,5.45534173,141.67,141.63,7.72974715]
[1768317041360,12.51400322,141.67,141.63,7.72974715]
[1768317041956,5.45534173,141.64,141.59,0.66931318]
[1768317042162,0.66480405,141.63,141.59,0.66931318]
[1768317042479,5.45534173,141.62,141.59,0.66931318]
[1768317042782,0.66480405,141.63,141.58,0.1]
[1768317043080,12.51713299,141.61,141.58,0.1]
[1768317043263,9.36088803,141.61,141.58,0.1]
[1768317045070,7.06179126,141.61,141.58,0.1]
[1768317045278,5.47426588,141.6,141.58,0.1]
[1768317045971,12.53605714,141.61,141.58,0.1]
[1768317046497,5.47426588,141.6,141.58,0.1]
[1768317046865,12.53605714,141.61,141.58,0.1]
[1768317047203,7.06179126,141.61,141.58,0.1]
[1768317047491,12.53605714,141.61,141.58,0.1]
[1768317048076,17.64967963,141.65,141.59,0.66931318]
[1768317048268,5.47426588,141.63,141.59,0.66931318]
[1768317048886,25.37998455,141.64,141.59,0.66931318]
[1768317049094,7.72960331,141.64,141.59,0.66931318]
[1768317049396,5.47426588,141.62,141.59,7.73163035]
[1768317050394,0.22938411,141.59,141.54,0.66931318]
[1768317050561,5.47426588,141.57,141.54,0.66931318]
[1768317051273,5.47426588,141.55,141.52,16.23407293]
[1768317051862,0.23365123,141.57,141.52,16.23407293]
[1768317052062,5.47426588,141.56,141.52,16.23407293]
[1768317052460,12.53871604,141.56,141.52,16.23407293]
[1768317052785,12.53871604,141.56,141.52,23.30015285]
[1768317053190,5.47426588,141.56,141.52,23.30015285]
[1768317053371,7.06395531,141.57,141.53,0.66931318]
[1768317053686,12.53822119,141.57,141.53,0.66931318]
[1768317054389,5.47426588,141.57,141.54,0.66931318]
[1768317055673,7.06264566,141.59,141.54,0.66931318]
[1768317055986,7.0623245,141.6,141.55,0.66931318]
[1768317056167,7.0623245,141.6,141.56,0.66931318]
[1768317056168,12.53659038,141.6,141.56,0.66931318]
[1768317056485,12.53659038,141.6,141.55,7.0642215]
[1768317056486,5.47426588,141.59,141.55,0.66931318]
[1768317057280,5.47426588,141.58,141.55,0.66931318]
[1768317057597,24.93374757,141.6,141.54,0.66931318]
[1768317057598,5.47426588,141.57,141.54,0.66931318]
[1768317057797,5.47426588,141.56,141.52,16.23407293]
[1768317058302,12.53888658,141.56,141.52,16.23407293]
[1768317058790,5.47426588,141.55,141.52,16.23407293]
[1768317058963,5.47426588,141.55,141.52,15.56475975]
[1768317059168,24.95000708,141.56,141.52,15.56475975]
[1768317059591,5.47426588,141.54,141.52,15.56475975]
[1768317060278,7.06563979,141.53,141.51,0.66931318]
[1768317060493,12.53990567,141.53,141.5,0.66931318]
[1768317060700,17.66218977,141.55,141.5,0.66931318]
[1768317060701,12.53948978,141.54,141.5,0.66931318]
[1768317060997,12.53948978,141.54,141.51,0.66931318]
[1768317062093,7.06452173,141.56,141.51,0.66931318]
[1768317062392,5.63763021,141.58,141.51,0.66931318]
[1768317062393,7.06385391,141.57,141.53,0.66931318]
[1768317062696,12.53759775,141.58,141.54,0.66931318]
[1768317062893,7.06333187,141.58,141.54,0.66931318]
[1768317063594,17.843761,141.62,141.56,0.66931318]
[1768317063595,7.06164818,141.61,141.56,0.66931318]
[1768317063786,12.53591406,141.61,141.56,0.66931318]
[1768317064386,7.06164818,141.61,141.57,0.66931318]
[1768317064574,12.53591406,141.61,141.57,0.66931318]
[1768317065399,15.95678932,141.61,141.57,0.66931318]
[1768317066189,15.95738991,141.6,141.57,0.66931318]
[1768317066389,7.06224877,141.6,141.56,7.75766455]
[1768317066704,15.95738991,141.6,141.56,7.75766455]
[1768317067392,7.06224877,141.6,141.56,7.75766455]
[1768317067602,10.65435354,141.61,141.57,7.75730405]
[1768317068202,10.65435354,141.61,141.57,0.69372039]
[1768317068500,3.59256887,141.6,141.57,0.69372039]
[1768317068671,3.59256887,141.6,141.57,7.75726157]
[1768317069302,8.89536272,141.6,141.57,7.75726157]
[1768317069599,8.89536272,141.6,141.57,0.69372039]
[1768317070101,15.95714739,141.61,141.57,7.75701595]
[1768317070394,15.95781594,141.6,141.56,7.06405845]
[1768317070703,8.89536272,141.59,141.55,0.69372039]
[1768317070893,8.89536272,141.58,141.55,0.69372039]
[1768317071580,8.89536272,141.57,141.53,0.69372039]
[1768317071783,8.89536272,141.59,141.55,0.69372039]
[1768317071978,8.89536272,141.57,141.55,0.69372039]
[1768317072186,8.89536272,141.57,141.53,7.75930138]
[1768317072386,7.06364342,141.57,141.53,7.75930138]
[1768317072587,15.95900614,141.57,141.53,7.75930138]
[1768317072797,7.06264566,141.59,141.54,0.69372039]
[1768317073013,15.95800838,141.59,141.54,0.69372039]
[1768317073381,8.89536272,141.57,141.54,0.69372039]
[1768317073904,8.89536272,141.58,141.54,0.69372039]
[1768317074103,15.95800838,141.59,141.54,0.69372039]
[1768317074597,15.95800838,141.59,141.53,7.06555798]
[1768317074598,15.95800838,141.59,141.55,7.75836185]
[1768317074804,8.89536272,141.58,141.55,0.69372039]
[1768317075100,8.89536272,141.57,141.53,0.69372039]
[1768317075508,8.89536272,141.55,141.51,0.69372039]
[1768317075699,8.89536272,141.54,141.51,0.69372039]
[1768317076484,8.89536272,141.54,141.5,20.64566898]
[1768317076685,15.96074139,141.54,141.5,20.64566898]
[1768317076891,15.96074139,141.54,141.51,0.69857001]
[1768317077286,8.89536272,141.54,141.51,0.69857001]
[1768317078402,15.9605039,141.54,141.51,0.69857001]
[1768317078908,7.06464146,141.55,141.51,0.69857001]
[1768317079210,8.89536272,141.54,141.51,0.69857001]
[1768317079382,8.89536272,141.54,141.51,7.76509385]
[1768317079793,7.06464146,141.55,141.51,7.76509385]
[1768317079990,8.89536272,141.54,141.51,7.76509385]
[1768317080282,15.95973025,141.56,141.52,0.69857001]
[1768317081008,8.89536272,141.56,141.52,7.76450713]
[1768317081610,8.89536272,141.56,141.53,0.69857001]
[1768317081987,15.95976404,141.56,141.53,0.69857001]
[1768317082794,121.25720669,141.58,141.54,0.69857001]
[1768317082795,103.4,141.58,141.54,0.69857001]
[1768317083112,15.95854618,141.58,141.54,0.69857001]
[1768317083901,15.95854618,141.58,141.54,7.76346697]
[1768317084101,7.06318346,141.58,141.54,7.76346697]
[1768317084299,15.95854618,141.58,141.54,7.76346697]
[1768317084505,12.88,141.6,141.55,0.69857001]
[1768317084702,14.06259872,141.59,141.55,0.69857001]
[1768317084898,8.89536272,141.59,141.55,0.69857001]
[1768317085396,7.06235578,141.6,141.55,0.69857001]
[1768317085603,8.89536272,141.59,141.55,0.69857001]
[1768317085913,8.89536272,141.59,141.56,7.06414241]
[1768317086112,15.95803495,141.59,141.55,0.69857001]
[1768317086312,7.06267223,141.59,141.55,0.69857001]
[1768317086518,15.95803495,141.59,141.55,0.69857001]
[1768317087224,15.95803495,141.59,141.54,25.42656209]
[1768317087225,14.76075624,141.58,141.54,25.42656209]
[1768317087404,0.68640803,141.58,141.54,24.72799208]
[1768317088615,7.06192314,141.61,141.56,9.59393273]
[1768317088616,0.69133371,141.61,141.56,9.59393273]
[1768317088991,16.15554714,141.62,141.57,0.69857001]
[1768317089193,5.18264838,141.61,141.57,7.76178666]
[1768317089400,7.06141843,141.62,141.58,0.69857001]
[1768317089602,35.29886272,141.65,141.59,0.69857001]
[1768317089603,8.89536272,141.64,141.59,0.69857001]
[1768317089804,3.97603833,141.62,141.57,7.76178666]
[1768317090115,3.97603833,141.62,141.58,13.57857001]
[1768317090425,8.89536272,141.62,141.58,13.57857001]
[1768317091118,8.89536272,141.62,141.59,0.69857001]
[1768317091323,10.65278779,141.62,141.59,0.69857001]
[1768317092093,3.59156492,141.61,141.59,0.69857001]
[1768317094418,3.59156492,141.6,141.55,4.29013493]
[1768317094623,0.68158037,141.61,141.56,0.69857001]
[1768317094810,24.71250184,141.63,141.56,0.69857001]
[1768317094811,3.59156492,141.59,141.56,0.69857001]
[1768317095006,10.654538,141.59,141.56,0.69857001]
[1768317095216,10.654538,141.59,141.52,17.66492213]
[1768317095217,4.26643797,141.57,141.5,17.66749894]
[1768317095408,3.59156492,141.55,141.51,7.06646685]
[1768317096208,3.59156492,141.54,141.49,7.16744211]
[1768317096411,3.59156492,141.54,141.49,12.98]
[1768317097104,3.59156492,141.54,141.5,7.06683722]
[1768317097305,3.59156492,141.54,141.51,0.66552679]
[1768317098321,3.59156492,141.54,141.51,7.73206466]
[1768317099257,4.26643797,141.55,141.51,7.73206466]
[1768317099434,3.59156492,141.56,141.52,0.66552679]
[1768317099802,3.59156492,141.57,141.53,0.66552679]
[1768317100118,17.65475207,141.61,141.53,0.66552679]
[1768317100119,4.26643797,141.58,141.53,0.66552679]
[1768317100342,12.88,141.6,141.53,0.66552679]
[1768317100343,7.0628586,141.59,141.54,7.73066738]
[1768317100502,7.73773165,141.59,141.54,11.3222323]
[1768317100701,7.73773165,141.59,141.55,3.59156492]
[1768317100898,0.67487305,141.61,141.57,0.66552679]
[1768317101203,3.59156492,141.62,141.57,4.25709171]
[1768317101420,18.32472329,141.65,141.59,0.66552679]
[1768317101604,3.59156492,141.63,141.59,0.66552679]
[1768317101815,4.26643797,141.63,141.59,0.66552679]
[1768317102223,4.26643797,141.63,141.59,7.72776529]
[1768317102429,0.67487305,141.63,141.59,7.72776529]
[1768317102634,0.67487305,141.63,141.59,11.31933021]
[1768317102927,0.67487305,141.63,141.59,7.72776529]
[1768317103227,0.67487305,141.63,141.59,11.31933021]
[1768317103419,0.67487305,141.63,141.6,3.59156492]
[1768317104307,7.73546044,141.64,141.6,11.31921333]
[1768317104511,11.32566864,141.66,141.61,4.25709171]
[1768317104729,5.8553012,141.65,141.62,3.59156492]
[1768317104916,0.67487305,141.65,141.62,3.59156492]
[1768317105112,7.05923067,141.66,141.62,3.59156492]
[1768317105428,7.73410372,141.66,141.63,8.8870352]
[1768317105813,0.67487305,141.66,141.62,0.66552679]
[1768317106005,7.05877479,141.67,141.64,8.8870352]
[1768317106326,7.73364784,141.67,141.64,8.8870352]
[1768317107533,7.05794687,141.69,141.66,8.8870352]
[1768317107704,7.73281992,141.69,141.66,8.8870352]
[1768317107905,0.67487305,141.68,141.65,8.8870352]
[1768317108421,0.67487305,141.68,141.65,15.94657395]
[1768317108613,0.67487305,141.68,141.66,8.8870352]
[1768317109006,0.67487305,141.68,141.65,7.05953875]
[1768317109226,0.67487305,141.68,141.65,15.94657395]
[1768317109423,7.73203607,141.7,141.66,8.8870352]
[1768317109819,0.67487305,141.69,141.66,8.8870352]
[1768317110509,0.67487305,141.69,141.65,7.72506554]
[1768317110510,7.73253803,141.69,141.65,0.66552679]
[1768317110712,7.73253803,141.69,141.65,9.55256199]
[1768317111924,7.73253803,141.69,141.65,16.61207273]
[1768317112120,0.67487305,141.68,141.64,0.66552679]
[1768317112439,0.67487305,141.68,141.65,8.8870352]
[1768317112440,7.7331299,141.68,141.65,8.8870352]
[1768317114334,0.67487305,141.7,141.66,8.8870352]
[1768317114638,0.67487305,141.69,141.66,8.8870352]
[1768317114813,0.67487305,141.69,141.65,7.72517425]
[1768317115015,0.67487305,141.69,141.66,8.8870352]
[1768317115834,0.67487305,141.69,141.65,7.72517425]
[1768317116037,0.67487305,141.69,141.66,8.8870352]
[1768317116338,7.73283986,141.69,141.65,9.55256199]
[1768317116516,0.67487305,141.69,141.67,8.8870352]
[1768317116713,7.05731795,141.7,141.67,8.8870352]
[1768317116714,7.732191,141.7,141.67,8.8870352]
[1768317117922,0.67487305,141.7,141.67,8.8870352]
[1768317118139,7.73203908,141.7,141.66,7.72455273]
[1768317118341,7.73203908,141.7,141.66,16.61158793]
[1768317120042,7.73203908,141.7,141.67,8.8870352]
[1768317121222,111.33167757,141.71,141.68,8.8870352]
[1768317121948,0.67487305,141.7,141.68,8.8870352]
[1768317122422,0.67487305,141.69,141.67,8.8870352]
[1768317122849,7.73225375,141.7,141.67,8.8870352]
[1768317123227,0.67487305,141.69,141.65,7.05946081]
[1768317123430,0.67487305,141.67,141.6,0.66552679]
[1768317123632,0.67487305,141.66,141.6,0.66552679]
[1768317123834,0.67487305,141.66,141.62,8.8870352]
[1768317124433,8.8870352,141.67,141.62,8.8870352]
[1768317124434,7.73452712,141.65,141.62,8.8870352]
[1768317125454,7.73452712,141.65,141.62,5.46932488]
[1768317125847,0.66217413,141.64,141.58,0.72413122]
[1768317126049,0.66217413,141.64,141.59,5.46932488]
[1768317126050,0.66217413,141.63,141.59,5.46932488]
[1768317126654,0.66217413,141.63,141.6,5.46932488]
[1768317126838,0.66217413,141.63,141.61,5.46932488]
[1768317127148,0.66217413,141.64,141.61,12.53095754]
[1768317127458,0.66217413,141.64,141.61,9.3590752]
[1768317127757,2.95961667,141.66,141.61,10.08320642]
[1768317128427,0.66217413,141.68,141.65,2.29744254]
[1768317128746,0.66217413,141.68,141.63,0.72413122]
[1768317128747,0.66217413,141.63,141.58,2.29744254]
[1768317128928,2.29744254,141.63,141.58,2.29744254]
[1768317129130,2.29744254,141.63,141.58,3.02157376]
[1768317129352,2.29744254,141.65,141.6,2.29744254]
[1768317129556,2.29744254,141.67,141.62,2.29744254]
[1768317130134,2.29744254,141.67,141.61,10.08321245]
[1768317130333,9.35680865,141.66,141.61,0.72413122]
[1768317130751,9.35680865,141.66,141.61,7.78558786]
[1768317130957,2.95961667,141.65,141.61,7.78558786]
[1768317131147,0.66217413,141.65,141.61,7.78558786]
[1768317131347,10.01842886,141.67,141.62,3.02157376]
[1768317131671,10.01842886,141.67,141.62,10.08249306]
[1768317132029,0.66217413,141.66,141.62,7.78505052]
[1768317132645,2.95961667,141.66,141.62,7.78505052]
[1768317133240,2.95961667,141.66,141.61,7.06158665]
[1768317133444,0.66217413,141.65,141.61,7.06158665]
[1768317133767,0.66217413,141.63,141.58,0.72413122]
[1768317134071,2.95961667,141.63,141.59,7.06257692]
[1768317134237,2.95961667,141.63,141.59,0.72413122]
[1768317135058,2.29744254,141.62,141.59,0.72413122]
[1768317135257,2.95961667,141.63,141.59,0.72413122]
[1768317135461,2.95961667,141.63,141.59,7.78671279]
[1768317136166,10.02058028,141.63,141.59,7.78671279]
[1768317136333,7.72313774,141.63,141.59,0.72413122]
[1768317136536,10.02058028,141.63,141.59,0.72413122]
[1768317137470,7.72313774,141.63,141.59,7.78656527]
[1768317138440,10.02058028,141.63,141.59,0.72413122]
[1768317139764,7.72313774,141.63,141.59,0.72413122]
[1768317139964,10.02058028,141.63,141.59,0.72413122]
[1768317141070,0.70144701,141.61,141.57,7.0634235]
[1768317141271,0.70144701,141.58,141.53,2.96562912]
[1768317141460,0.70144701,141.58,141.54,7.06514059]
[1768317141642,0.70144701,141.58,141.54,7.73332717]
[1768317142147,2.99888955,141.59,141.55,0.66818658]
[1768317142552,7.06314451,141.58,141.55,0.66818658]
[1768317143072,7.06314451,141.58,141.55,7.73280851]
[1768317143282,7.06314451,141.58,141.55,0.66818658]